fUSD/lending_fUSD_20260515
["ID","MTS","AMOUNT","RATE_DAILY","PERIOD"]
[422275658,1778784649000,-150.0,0.00014537,2]
[422275664,1778784649000,-150.0,0.00014578,2]
[422275661,1778784649000,-150.0,0.00014561,2]
[422275659,1778784649000,-150.0,0.00014544,2]
[422275652,1778784649000,-5090.3078452,0.00014514,2]
[422275660,1778784649000,-499.73797022,0.00014558,2]
[422275656,1778784649000,-150.0,0.00014526,2]
[422275655,1778784649000,-150.0,0.00014525,2]
[422275654,1778784649000,-150.0,0.00014521,2]
[422275657,1778784649000,-150.0,0.0001453,2]
[422275663,1778784649000,-150.0,0.00014573,2]
[422275670,1778784649000,-150.0,0.00014612,2]
[422275662,1778784649000,-150.0,0.00014565,2]
[422275666,1778784649000,-150.0,0.00014587,2]
[422275667,1778784649000,-1152.0,0.00014593,2]
[422275668,1778784649000,-150.0,0.00014595,2]
[422275672,1778784649000,-150.0,0.00014612,2]
[422275669,1778784649000,-150.0,0.00014595,2]
[422275671,1778784649000,-150.0,0.00014612,2]
[422275673,1778784649000,-151.0,0.00014614,2]
[422275675,1778784649000,-836.749269,0.00014614,2]
[422275674,1778784649000,-151.0,0.00014614,2]
[422275676,1778784649000,-836.749269,0.00014614,2]
[422275653,1778784649000,-150.0,0.00014518,2]
[422275665,1778784649000,-150.0,0.00014578,2]
[422275651,1778784649000,-150.0,0.00014509,2]
[422275637,1778784649000,-150.0,0.00014418,2]
[422275650,1778784649000,-150.0,0.00014509,2]
[422275623,1778784649000,-150.0,0.00014339,2]
[422275624,1778784649000,-24465.76239365,0.00014355,2]
[422275625,1778784649000,-150.0,0.00014356,2]
[422275626,1778784649000,-150.0,0.00014366,2]
[422275628,1778784649000,-150.0,0.00014373,2]
[422275627,1778784649000,-150.0,0.00014373,2]
[422275629,1778784649000,-150.0,0.00014377,2]
[422275630,1778784649000,-166.66,0.00014384,2]
[422275633,1778784649000,-150.0,0.0001439,2]
[422275631,1778784649000,-150.0,0.00014387,2]
[422275632,1778784649000,-150.0,0.00014387,2]
[422275635,1778784649000,-150.0,0.00014407,2]
[422275634,1778784649000,-150.0,0.000144,2]
[422275636,1778784649000,-150.0,0.0001441,2]
[422275638,1778784649000,-150.0,0.00014424,2]
[422275639,1778784649000,-150.0,0.00014424,2]
[422275640,1778784649000,-150.0,0.00014441,2]
[422275641,1778784649000,-150.0,0.00014441,2]
[422275643,1778784649000,-150.0,0.00014465,2]
[422275642,1778784649000,-150.0,0.00014458,2]
[422275644,1778784649000,-150.0,0.0001447,2]
[422275646,1778784649000,-150.0,0.00014475,2]
[422275647,1778784649000,-150.0,0.00014487,2]
[422275648,1778784649000,-150.0,0.00014487,2]
[422275645,1778784649000,-150.0,0.00014471,2]
[422275649,1778784649000,-150.0,0.00014492,2]
[422275677,1778784649000,-836.749269,0.00014614,2]
[422275684,1778784649000,-1360.999367,0.00014614,2]
[422275678,1778784649000,-836.749269,0.00014614,2]
[422275708,1778784649000,-150.0,0.00014646,2]
[422275710,1778784649000,-151.0,0.00014658,2]
[422275712,1778784649000,-150.0,0.00014661,2]
[422275713,1778784649000,-150.0,0.00014663,2]
[422275715,1778784649000,-150.0,0.0001468,2]
[422275716,1778784649000,-789.58,0.00014685,2]
[422275717,1778784649000,-150.0,0.00014687,2]
[422275714,1778784649000,-150.0,0.00014676,2]
[422275719,1778784649000,-150.0,0.00014697,2]
[422275722,1778784649000,-150.0,0.00014714,2]
[422275724,1778784649000,-150.0,0.00014728,2]
[422275725,1778784649000,-150.0,0.00014731,2]
[422275723,1778784649000,-150.0,0.00014726,2]
[422275720,1778784649000,-150.0,0.00014705,2]
[422275721,1778784649000,-150.0,0.00014714,2]
[422275727,1778784649000,-150.0,0.00014752,2]
[422275728,1778784649000,-150.0,0.00014756,2]
[422275726,1778784649000,-150.0,0.00014748,2]
[422275729,1778784649000,-150.0,0.00014765,2]
[422275733,1778784649000,-150.0,0.00014782,2]
[422275732,1778784649000,-150.0,0.00014782,2]
[422275730,1778784649000,-205.61,0.00014768,2]
[422275731,1778784649000,-150.0,0.0001478,2]
[422275734,1778784649000,-150.0,0.00014786,2]
[422275683,1778784649000,-1360.999367,0.00014614,2]
[422275711,1778784649000,-150.0,0.00014658,2]
[422275709,1778784649000,-150.0,0.00014646,2]
[422275718,1778784649000,-150.0,0.00014687,2]
[422275706,1778784649000,-150.0,0.00014629,2]
[422275679,1778784649000,-176.939598,0.00014614,2]
[422275681,1778784649000,-176.939598,0.00014614,2]
[422275682,1778784649000,-176.939598,0.00014614,2]
[422275707,1778784649000,-150.0,0.0001464,2]
[422275686,1778784649000,-1360.999367,0.00014614,2]
[422275685,1778784649000,-1360.999367,0.00014614,2]
[422275688,1778784649000,-609.267295,0.00014614,2]
[422275687,1778784649000,-151.0,0.00014614,2]
[422275689,1778784649000,-151.0,0.00014614,2]
[422275690,1778784649000,-609.267295,0.00014614,2]
[422275692,1778784649000,-609.267295,0.00014614,2]
[422275691,1778784649000,-151.0,0.00014614,2]
[422275693,1778784649000,-609.267295,0.00014614,2]
[422275680,1778784649000,-176.939598,0.00014614,2]
[422275694,1778784649000,-151.0,0.00014614,2]
[422275695,1778784649000,-151.0,0.00014614,2]
[422275704,1778784649000,-273.164445,0.00014614,2]
[422275705,1778784649000,-150.0,0.00014625,2]
[422275702,1778784649000,-366.6775,0.00014614,2]
[422275701,1778784649000,-4156.39593079,0.00014614,2]
[422275703,1778784649000,-216508.66437504,0.00014614,2]
[422275699,1778784649000,-4268.87,0.00014614,2]
[422275697,1778784649000,-8115.1196076,0.00014614,2]
[422275698,1778784649000,-349317.89440065,0.00014614,2]
[422275696,1778784649000,-9954.2363523,0.00014614,2]
[422275700,1778784649000,-3452.80842712,0.00014614,2]
[422275751,1778784650000,-150.0,0.00014893,2]
[422275744,1778784650000,-150.0,0.0001485,2]
[422275753,1778784650000,-158.81004731,0.000149,2]
[422275752,1778784650000,-24465.76239365,0.000149,2]
[422275750,1778784650000,-150.0,0.00014886,2]
[422275749,1778784650000,-150.0,0.00014884,2]
[422275742,1778784650000,-150.0,0.00014846,2]
[422275748,1778784650000,-150.0,0.00014883,2]
[422275745,1778784650000,-150.0,0.00014856,2]
[422275740,1778784650000,-150.0,0.00014833,2]
[422275746,1778784650000,-150.0,0.00014867,2]
[422275743,1778784650000,-150.0,0.0001485,2]
[422275741,1778784650000,-150.0,0.00014836,2]
[422275738,1778784650000,-150.0,0.00014816,2]
[422275739,1778784650000,-150.0,0.00014831,2]
[422275736,1778784650000,-150.0,0.00014799,2]
[422275737,1778784650000,-150.0,0.00014799,2]
[422275735,1778784650000,-150.0,0.00014791,2]
[422275754,1778784650000,-150.0,0.00014901,2]
[422275747,1778784650000,-150.0,0.00014871,2]
[422275755,1778784650000,-150.0,0.00014918,2]
[422275770,1778784650000,-242.50931958,0.00014986,2]
[422275756,1778784650000,-150.0,0.00014918,2]
[422275777,1778784650000,-653702.35746955,0.00015,2]
[422275775,1778784650000,-151.0,0.00014997,2]
[422275776,1778784650000,-137125.3369427,0.00015,2]
[422275774,1778784650000,-294.45862649,0.00014986,2]
[422275772,1778784650000,-150.40896932,0.00014986,2]
[422275778,1778784650000,-504.0,0.00015,2]
[422275769,1778784650000,-150.00000001,0.00014986,2]
[422275768,1778784650000,-152.24553907,0.00014986,2]
[422275766,1778784650000,-158.41186941,0.00014986,2]
[422275773,1778784650000,-178.0382564,0.00014986,2]
[422275767,1778784650000,-153.86101362,0.00014986,2]
[422275765,1778784650000,-250.30102013,0.00014986,2]
[422275762,1778784650000,-789.58,0.00014959,2]
[422275764,1778784650000,-150.0,0.00014986,2]
[422275763,1778784650000,-150.0,0.00014969,2]
[422275757,1778784650000,-150.0,0.00014921,2]
[422275760,1778784650000,-150.0,0.00014939,2]
[422275758,1778784650000,-150.0,0.00014935,2]
[422275759,1778784650000,-150.0,0.00014935,2]
[422275771,1778784650000,-297.16245739,0.00014986,2]
[422275761,1778784650000,-150.0,0.00014952,2]
[422275782,1778785062000,156.68,4.961e-05,2]
[422275784,1778785063000,156.68,8.139e-05,2]
[422275783,1778785063000,156.68,6.55e-05,2]
[422275785,1778785393000,500.0,9.6e-05,3]
[422275786,1778785395000,1000.0,9.7e-05,3]
[422275787,1778785397000,1500.0,9.8e-05,3]
[422275788,1778785399000,2100.0,9.9e-05,3]
[422275789,1778785401000,2600.0,0.0001,3]
[422275793,1778785603000,-195.4434357,9.217e-05,2]
[422275794,1778785802000,1000.0,0.00013699,7]
[422275819,1778785832000,-663.86,9.514e-05,2]
[422275817,1778785832000,-167.4,9.437e-05,2]
[422275821,1778785832000,-266.80501269,9.767e-05,2]
[422275818,1778785832000,-166.42,9.503e-05,2]
[422275816,1778785832000,-744.001134,9.389e-05,2]
[422275813,1778785832000,-2000.0,9.136e-05,2]
[422275812,1778785832000,-263.2725,9.117e-05,2]
[422275814,1778785832000,-4.5565643,9.217e-05,2]
[422275811,1778785832000,-250.0,9.109e-05,2]
[422275810,1778785832000,-150.19,9.082e-05,2]
[422275822,1778785832000,-500.0,9.767e-05,2]
[422275815,1778785832000,-250.0,9.252e-05,2]
[422275820,1778785832000,-156.68,9.728e-05,2]
[422275835,1778785832000,-88767.85530009,9.768e-05,2]
[422275823,1778785832000,-500.0,9.767e-05,2]
[422275824,1778785832000,-500.0,9.767e-05,2]
[422275839,1778785832000,-954.0,9.768e-05,2]
[422275836,1778785832000,-406.10747895,9.768e-05,2]
[422275829,1778785832000,-500.0,9.767e-05,2]
[422275830,1778785832000,-240.0,9.767e-05,2]
[422275834,1778785832000,-803157.97897736,9.768e-05,2]
[422275831,1778785832000,-1200.0,9.767e-05,2]
[422275833,1778785832000,-2500.0,9.768e-05,2]
[422275827,1778785832000,-500.0,9.767e-05,2]
[422275828,1778785832000,-219.64942424,9.767e-05,2]
[422275825,1778785832000,-500.0,9.767e-05,2]
[422275826,1778785832000,-515.59021033,9.767e-05,2]
[422275832,1778785832000,-5000.0,9.768e-05,2]
[422275864,1778785838000,-1027.1,9.768e-05,2]
[422275859,1778785838000,-469.40469083,9.768e-05,2]
[422275862,1778785838000,-1976.09516634,9.768e-05,2]
[422275863,1778785838000,-3750.25431286,9.768e-05,2]
[422275865,1778785838000,-5931.50173676,9.768e-05,2]
[422275868,1778785838000,-2388.669,9.867e-05,2]
[422275867,1778785838000,-150.0,9.866e-05,2]
[422275869,1778785838000,-165.751,9.867e-05,2]
[422275870,1778785838000,-336264.46912629,9.868e-05,2]
[422275871,1778785838000,-1386.35636678,9.868e-05,2]
[422275872,1778785838000,-1022.80286062,9.868e-05,2]
[422275866,1778785838000,-1593559.70233681,9.768e-05,2]
[422276128,1778785840000,-10000.0,9.868e-05,2]
[422276112,1778785840000,-20410.93765589,9.868e-05,2]
[422276126,1778785840000,-1140915.43399042,9.868e-05,2]
[422276130,1778785840000,-5090.3078452,9.868e-05,2]
[422276139,1778785840000,-151.0,9.965e-05,2]
[422276132,1778785840000,-500.0,9.92e-05,2]
[422276147,1778785840000,-226.39869894,0.0001,2]
[422276135,1778785840000,-151.0,9.965e-05,2]
[422276141,1778785840000,-2257.67,9.968e-05,2]
[422276145,1778785840000,-250.0,9.99e-05,2]
[422276143,1778785840000,-54747.61836154,9.975e-05,2]
[422276137,1778785840000,-151.0,9.965e-05,2]
[422276233,1778785841000,-2251.07216811,0.00011099,2]
[422276235,1778785841000,-17644.58428198,0.00011234,2]
[422276230,1778785841000,-2251.07216811,0.00011099,2]
[422276228,1778785841000,-2251.07216814,0.00011099,2]
[422276223,1778785841000,-15278.26099368,0.00011099,2]
[422276213,1778785841000,-8376.41951269,0.00011,2]
[422276275,1778785841000,-151.0,0.000119,2]
[422276217,1778785841000,-4000.0,0.0001103,2]
[422276221,1778785841000,-15278.26099373,0.00011099,2]
[422276215,1778785841000,-167.4,0.0001101,2]
[422276226,1778785841000,-15278.26099368,0.00011099,2]
[422276219,1778785841000,-166.42,0.00011072,2]
[422276239,1778785841000,-2859.41498931,0.000114,2]
[422276207,1778785841000,-260.47664915,0.00010896,2]
[422276250,1778785841000,-2351.0,0.00011818,2]
[422276252,1778785841000,-93594.22776443,0.000119,2]
[422276241,1778785841000,-2000.0,0.0001142,2]
[422276245,1778785841000,-15278.26099368,0.00011471,2]
[422276243,1778785841000,-2251.07216811,0.0001147,2]
[422276254,1778785841000,-1441.140998,0.000119,2]
[422276256,1778785841000,-1441.140998,0.000119,2]
[422276260,1778785841000,-1441.140998,0.000119,2]
[422276258,1778785841000,-1441.140998,0.000119,2]
[422276273,1778785841000,-151.0,0.000119,2]
[422276277,1778785841000,-151.0,0.000119,2]
[422276262,1778785841000,-151.0,0.000119,2]
[422276247,1778785841000,-152.0,0.00011696,2]
[422276205,1778785841000,-255.0,0.00010853,2]
[422276169,1778785841000,-500.0,0.00010285,2]
[422276209,1778785841000,-150.0,0.00010959,2]
[422276264,1778785841000,-151.0,0.000119,2]
[422276151,1778785841000,-70001.685613,0.00010011,2]
[422276154,1778785841000,-166.42,0.00010026,2]
[422276149,1778785841000,-500.0,0.00010011,2]
[422276160,1778785841000,-214.95940296,0.00010105,2]
[422276158,1778785841000,-160.0,0.0001009,2]
[422276156,1778785841000,-4000.0,0.00010027,2]
[422276164,1778785841000,-150.19,0.00010217,2]
[422276162,1778785841000,-208.3309892,0.00010105,2]
[422276166,1778785841000,-2000.0,0.00010278,2]
[422276179,1778785841000,-226.74,0.00010475,2]
[422276176,1778785841000,-1466.74,0.00010475,2]
[422276168,1778785841000,-4000.0,0.00010278,2]
[422276174,1778785841000,-28099.88,0.00010475,2]
[422276172,1778785841000,-9999.99,0.00010475,2]
[422276180,1778785841000,-9999.99,0.00010475,2]
[422276183,1778785841000,-999.99,0.00010475,2]
[422276185,1778785841000,-150.99,0.00010475,2]
[422276187,1778785841000,-27700.35,0.00010475,2]
[422276189,1778785841000,-77427.66,0.00010475,2]
[422276199,1778785841000,-150.0,0.00010765,2]
[422276203,1778785841000,-579.31519183,0.00010833,2]
[422276201,1778785841000,-4000.0,0.00010779,2]
[422276195,1778785841000,-500.0,0.00010559,2]
[422276197,1778785841000,-1680.0,0.00010744,2]
[422276193,1778785841000,-166.42,0.00010549,2]
[422276191,1778785841000,-4000.0,0.00010529,2]
[422276211,1778785841000,-150.0,0.00010959,2]
[422276266,1778785841000,-151.0,0.000119,2]
[422276237,1778785841000,-150.19,0.00011353,2]
[422276269,1778785841000,-151.0,0.000119,2]
[422276355,1778785841000,-506.67968673,0.00013698,2]
[422276342,1778785841000,-238.57238221,0.00013488,2]
[422276350,1778785841000,-500.0,0.00013698,2]
[422276348,1778785841000,-150.19,0.00013623,2]
[422276346,1778785841000,-3881.0,0.00013608,2]
[422276344,1778785841000,-1256.58,0.00013608,2]
[422276340,1778785841000,-150.0,0.00013488,2]
[422276357,1778785841000,-500.0,0.00013698,2]
[422276358,1778785841000,-500.0,0.00013698,2]
[422276360,1778785841000,-500.0,0.00013698,2]
[422276362,1778785841000,-500.0,0.00013698,2]
[422276367,1778785841000,-539.16316336,0.00013698,2]
[422276369,1778785841000,-500.0,0.00013698,2]
[422276373,1778785841000,-500.0,0.00013698,2]
[422276371,1778785841000,-500.0,0.00013698,2]
[422276381,1778785841000,-500.0,0.00013698,2]
[422276375,1778785841000,-500.0,0.00013698,2]
[422276379,1778785841000,-500.0,0.00013698,2]
[422276377,1778785841000,-500.0,0.00013698,2]
[422276383,1778785841000,-500.0,0.00013698,2]
[422276386,1778785841000,-565.44255009,0.00013698,2]
[422276390,1778785841000,-500.0,0.00013698,2]
[422276388,1778785841000,-500.0,0.00013698,2]
[422276392,1778785841000,-500.0,0.00013698,2]
[422276394,1778785841000,-500.0,0.00013698,2]
[422276396,1778785841000,-500.0,0.00013698,2]
[422276271,1778785841000,-151.0,0.000119,2]
[422276352,1778785841000,-500.0,0.00013698,2]
[422276336,1778785841000,-248.94301125,0.00013488,2]
[422276365,1778785841000,-500.0,0.00013698,2]
[422276332,1778785841000,-150.0,0.00013488,2]
[422276279,1778785841000,-17644.58428198,0.00011967,2]
[422276338,1778785841000,-250.82622101,0.00013488,2]
[422276281,1778785841000,-2251.07216811,0.00012038,2]
[422276285,1778785841000,-500.0,0.00012329,2]
[422276283,1778785841000,-15278.26099368,0.00012039,2]
[422276287,1778785841000,-500.0,0.00012384,2]
[422276289,1778785841000,-150.19,0.00012488,2]
[422276298,1778785841000,-15278.26099368,0.00012606,2]
[422276300,1778785841000,-17644.58428198,0.00012701,2]
[422276294,1778785841000,-167.4,0.00012583,2]
[422276292,1778785841000,-2000.0,0.00012562,2]
[422276296,1778785841000,-2251.07216811,0.00012605,2]
[422276303,1778785841000,-150.0,0.0001299,2]
[422276307,1778785841000,-592.64,0.00013157,2]
[422276302,1778785841000,-150.0,0.0001299,2]
[422276305,1778785841000,-412.0,0.00013,2]
[422276334,1778785841000,-270.22226106,0.00013488,2]
[422276312,1778785841000,-15278.26099368,0.00013174,2]
[422276326,1778785841000,-547.349562,0.00013469,2]
[422276328,1778785841000,-225.6944365,0.00013488,2]
[422276322,1778785841000,-547.349562,0.00013469,2]
[422276320,1778785841000,-547.349562,0.00013469,2]
[422276330,1778785841000,-273.2468497,0.00013488,2]
[422276324,1778785841000,-547.349562,0.00013469,2]
[422276318,1778785841000,-17644.58428198,0.00013434,2]
[422276316,1778785841000,-155.85,0.00013241,2]
[422276310,1778785841000,-2251.07216811,0.00013173,2]
[422276314,1778785841000,-150.0,0.00013232,2]
[422276491,1778785842000,-500.0,0.00013698,2]
[422276483,1778785842000,-330.37437133,0.00013698,2]
[422276481,1778785842000,-382.66914498,0.00013698,2]
[422276479,1778785842000,-500.0,0.00013698,2]
[422276477,1778785842000,-500.0,0.00013698,2]
[422276469,1778785842000,-500.0,0.00013698,2]
[422276475,1778785842000,-500.0,0.00013698,2]
[422276473,1778785842000,-500.0,0.00013698,2]
[422276471,1778785842000,-500.0,0.00013698,2]
[422276467,1778785842000,-369.00573565,0.00013698,2]
[422276485,1778785842000,-500.0,0.00013698,2]
[422276465,1778785842000,-500.0,0.00013698,2]
[422276487,1778785842000,-503.11245035,0.00013698,2]
[422276518,1778785842000,-500.0,0.00013698,2]
[422276497,1778785842000,-500.0,0.00013698,2]
[422276495,1778785842000,-500.0,0.00013698,2]
[422276499,1778785842000,-500.0,0.00013698,2]
[422276508,1778785842000,-500.0,0.00013698,2]
[422276504,1778785842000,-500.0,0.00013698,2]
[422276493,1778785842000,-500.0,0.00013698,2]
[422276506,1778785842000,-500.0,0.00013698,2]
[422276510,1778785842000,-500.0,0.00013698,2]
[422276512,1778785842000,-500.0,0.00013698,2]
[422276514,1778785842000,-500.0,0.00013698,2]
[422276516,1778785842000,-502.73843506,0.00013698,2]
[422276463,1778785842000,-290.91,0.00013698,2]
[422276489,1778785842000,-500.0,0.00013698,2]
[422276461,1778785842000,-500.0,0.00013698,2]
[422276401,1778785842000,-500.0,0.00013698,2]
[422276457,1778785842000,-500.0,0.00013698,2]
[422276525,1778785842000,-151.0,0.00013699,2]
[422276405,1778785842000,-533.54989741,0.00013698,2]
[422276403,1778785842000,-500.0,0.00013698,2]
[422276398,1778785842000,-500.0,0.00013698,2]
[422276407,1778785842000,-500.0,0.00013698,2]
[422276409,1778785842000,-500.0,0.00013698,2]
[422276412,1778785842000,-500.0,0.00013698,2]
[422276414,1778785842000,-500.0,0.00013698,2]
[422276416,1778785842000,-508.03542635,0.00013698,2]
[422276418,1778785842000,-500.0,0.00013698,2]
[422276421,1778785842000,-500.0,0.00013698,2]
[422276425,1778785842000,-500.0,0.00013698,2]
[422276423,1778785842000,-500.0,0.00013698,2]
[422276427,1778785842000,-500.0,0.00013698,2]
[422276429,1778785842000,-500.0,0.00013698,2]
[422276432,1778785842000,-500.0,0.00013698,2]
[422276436,1778785842000,-500.0,0.00013698,2]
[422276434,1778785842000,-429.05238357,0.00013698,2]
[422276438,1778785842000,-500.0,0.00013698,2]
[422276441,1778785842000,-500.0,0.00013698,2]
[422276447,1778785842000,-500.0,0.00013698,2]
[422276443,1778785842000,-500.0,0.00013698,2]
[422276445,1778785842000,-500.0,0.00013698,2]
[422276449,1778785842000,-500.0,0.00013698,2]
[422276453,1778785842000,-500.0,0.00013698,2]
[422276451,1778785842000,-500.0,0.00013698,2]
[422276455,1778785842000,-500.0,0.00013698,2]
[422276459,1778785842000,-500.0,0.00013698,2]
[422276523,1778785842000,-200.0,0.00013699,2]
[422276501,1778785842000,-500.0,0.00013698,2]
[422276521,1778785842000,-231.28528028,0.00013698,2]
[422276593,1778785842000,-2000.0,0.000144,2]
[422276603,1778785842000,-2000.0,0.000144,2]
[422276597,1778785842000,-2000.0,0.000144,2]
[422276599,1778785842000,-2000.0,0.000144,2]
[422276591,1778785842000,-166.66,0.00014384,2]
[422276601,1778785842000,-2000.0,0.000144,2]
[422276607,1778785842000,-700.0,0.00014563,2]
[422276605,1778785842000,-2000.0,0.000144,2]
[422276609,1778785842000,-2000.0,0.000146,2]
[422276612,1778785842000,-1000.0,0.00014756,2]
[422276614,1778785842000,-1000.0,0.0001477,2]
[422276617,1778785842000,-2160.5,0.00014838,2]
[422276629,1778785842000,-15278.26099368,0.00014877,2]
[422276619,1778785842000,-1098.8,0.00014838,2]
[422276627,1778785842000,-158.52793,0.0001486,2]
[422276631,1778785842000,-2251.07216811,0.00014877,2]
[422276623,1778785842000,-158.52793,0.0001485,2]
[422276621,1778785842000,-1000.0,0.00014847,2]
[422276633,1778785842000,-155.85,0.00014896,2]
[422276625,1778785842000,-158.52793,0.0001485,2]
[422276637,1778785842000,-1000.0,0.00014935,2]
[422276635,1778785842000,-17644.58428198,0.000149,2]
[422276639,1778785842000,-94487.5567907,0.00014977,2]
[422276641,1778785842000,-11174.5869364,0.00014977,2]
[422276643,1778785842000,-280798.3158693,0.00014977,2]
[422276645,1778785842000,-4043.29296365,0.00014977,2]
[422276528,1778785842000,-2500.0,0.00013699,2]
[422276586,1778785842000,-2251.07216811,0.00014309,2]
[422276589,1778785842000,-15278.26099368,0.00014309,2]
[422276595,1778785842000,-2311.0,0.000144,2]
[422276571,1778785842000,-166.66,0.0001411,2]
[422276520,1778785842000,-500.0,0.00013698,2]
[422276526,1778785842000,-151.0,0.00013699,2]
[422276522,1778785842000,-166.66,0.00013699,2]
[422276530,1778785842000,-151.0,0.00013699,2]
[422276533,1778785842000,-151.0,0.00013699,2]
[422276584,1778785842000,-7900.96028016,0.00014287,2]
[422276537,1778785842000,-151.0,0.00013699,2]
[422276539,1778785842000,-388.210377,0.00013699,2]
[422276550,1778785842000,-183.01278284,0.000137,2]
[422276547,1778785842000,-995.27,0.000137,2]
[422276541,1778785842000,-388.210377,0.00013699,2]
[422276554,1778785842000,-2251.07216811,0.00013741,2]
[422276545,1778785842000,-388.210377,0.00013699,2]
[422276552,1778785842000,-2000.0,0.00013704,2]
[422276535,1778785842000,-151.0,0.00013699,2]
[422276556,1778785842000,-15278.26099368,0.00013742,2]
[422276543,1778785842000,-388.210377,0.00013699,2]
[422276569,1778785842000,-250.0,0.00014,2]
[422276579,1778785842000,-34959.57603961,0.00014287,2]
[422276582,1778785842000,-4592.49652544,0.00014287,2]
[422276566,1778785842000,-166.66,0.00013973,2]
[422276577,1778785842000,-166.66,0.00014247,2]
[422276575,1778785842000,-17644.58428198,0.00014167,2]
[422276565,1778785842000,-169.08,0.00013956,2]
[422276558,1778785842000,-166.66,0.00013836,2]
[422276563,1778785842000,-150.97,0.00013956,2]
[422276560,1778785842000,-2039.94833677,0.00013896,2]
[422276573,1778785842000,-167.4,0.00014156,2]
[422276679,1778785843000,-547.349562,0.00014977,2]
[422276693,1778785843000,-1441.140998,0.00014977,2]
[422276701,1778785843000,-388.210377,0.00014977,2]
[422276689,1778785843000,-1441.140998,0.00014977,2]
[422276685,1778785843000,-151.0,0.00014977,2]
[422276683,1778785843000,-151.0,0.00014977,2]
[422276681,1778785843000,-151.0,0.00014977,2]
[422276704,1778785843000,-388.210377,0.00014977,2]
[422276660,1778785843000,-151.0,0.00014977,2]
[422276677,1778785843000,-547.349562,0.00014977,2]
[422276672,1778785843000,-547.349562,0.00014977,2]
[422276655,1778785843000,-12750.4277982,0.00014977,2]
[422276651,1778785843000,-3265.2523179,0.00014977,2]
[422276658,1778785843000,-151.0,0.00014977,2]
[422276649,1778785843000,-11596.74415635,0.00014977,2]
[422276687,1778785843000,-1441.140998,0.00014977,2]
[422276675,1778785843000,-547.349562,0.00014977,2]
[422276691,1778785843000,-1441.140998,0.00014977,2]
[422276716,1778785843000,-151.0,0.00014997,2]
[422276695,1778785843000,-151.0,0.00014977,2]
[422276725,1778785843000,-570.72982862,0.00015,2]
[422276724,1778785843000,-340653.04392553,0.00015,2]
[422276721,1778785843000,-300.0,0.00014999,2]
[422276719,1778785843000,-151.0,0.00014997,2]
[422276718,1778785843000,-155.7367363,0.00014997,2]
[422276720,1778785843000,-151.0,0.00014997,2]
[422276722,1778785843000,-300.0,0.00014999,2]
[422276723,1778785843000,-174.59413152,0.00014999,2]
[422276714,1778785843000,-151.0,0.00014977,2]
[422276717,1778785843000,-151.0,0.00014997,2]
[422276699,1778785843000,-388.210377,0.00014977,2]
[422276706,1778785843000,-388.210377,0.00014977,2]
[422276697,1778785843000,-151.0,0.00014977,2]
[422276712,1778785843000,-151.0,0.00014977,2]
[422276708,1778785843000,-151.0,0.00014977,2]
[422276715,1778785843000,-151.0,0.00014997,2]
[422276710,1778785843000,-151.0,0.00014977,2]
[422276738,1778785847000,-97884.90633708,0.00015,2]
[422276737,1778785847000,-151.0,0.00014795,2]
[422276735,1778785847000,-151.0,0.00014795,2]
[422276733,1778785847000,-151.0,0.00014795,2]
[422276731,1778785847000,-480.43,0.00014795,2]